fUSD/lending_fUSD_20260530
["ID","MTS","AMOUNT","RATE_DAILY","PERIOD"]
[423469478,1780149038000,-502.31004729,0.00013698,2]
[423469477,1780149038000,-500.0,0.00013698,2]
[423469479,1780149038000,-500.0,0.00013698,2]
[423469480,1780149038000,-500.0,0.00013698,2]
[423469476,1780149038000,-500.0,0.00013698,2]
[423469487,1780149038000,-500.0,0.00013698,2]
[423469539,1780149039000,-500.0,0.00013698,2]
[423469537,1780149039000,-500.0,0.00013698,2]
[423469535,1780149039000,-500.0,0.00013698,2]
[423469536,1780149039000,-500.0,0.00013698,2]
[423469534,1780149039000,-500.0,0.00013698,2]
[423469528,1780149039000,-500.0,0.00013698,2]
[423469533,1780149039000,-500.0,0.00013698,2]
[423469530,1780149039000,-500.0,0.00013698,2]
[423469531,1780149039000,-500.0,0.00013698,2]
[423469529,1780149039000,-500.0,0.00013698,2]
[423469540,1780149039000,-500.0,0.00013698,2]
[423469532,1780149039000,-500.0,0.00013698,2]
[423469542,1780149039000,-500.0,0.00013698,2]
[423469552,1780149039000,-500.0,0.00013698,2]
[423469544,1780149039000,-500.0,0.00013698,2]
[423469549,1780149039000,-266.90977676,0.00013698,2]
[423469548,1780149039000,-500.0,0.00013698,2]
[423469543,1780149039000,-500.0,0.00013698,2]
[423469547,1780149039000,-500.0,0.00013698,2]
[423469545,1780149039000,-500.0,0.00013698,2]
[423469546,1780149039000,-500.0,0.00013698,2]
[423469551,1780149039000,-500.0,0.00013698,2]
[423469550,1780149039000,-500.0,0.00013698,2]
[423469526,1780149039000,-500.0,0.00013698,2]
[423469553,1780149039000,-500.0,0.00013698,2]
[423469555,1780149039000,-448.29,0.00013698,2]
[423469541,1780149039000,-500.0,0.00013698,2]
[423469527,1780149039000,-387.24040857,0.00013698,2]
[423469516,1780149039000,-575.78,0.00013698,2]
[423469524,1780149039000,-500.0,0.00013698,2]
[423469500,1780149039000,-500.0,0.00013698,2]
[423469501,1780149039000,-500.0,0.00013698,2]
[423469498,1780149039000,-500.0,0.00013698,2]
[423469499,1780149039000,-500.0,0.00013698,2]
[423469503,1780149039000,-500.0,0.00013698,2]
[423469502,1780149039000,-500.0,0.00013698,2]
[423469505,1780149039000,-207.9347959,0.00013698,2]
[423469504,1780149039000,-500.0,0.00013698,2]
[423469506,1780149039000,-500.0,0.00013698,2]
[423469507,1780149039000,-500.0,0.00013698,2]
[423469508,1780149039000,-500.0,0.00013698,2]
[423469510,1780149039000,-500.0,0.00013698,2]
[423469525,1780149039000,-500.0,0.00013698,2]
[423469509,1780149039000,-500.0,0.00013698,2]
[423469511,1780149039000,-497.78987791,0.00013698,2]
[423469513,1780149039000,-575.78,0.00013698,2]
[423469515,1780149039000,-575.78,0.00013698,2]
[423469556,1780149039000,-500.0,0.00013698,2]
[423469517,1780149039000,-575.78,0.00013698,2]
[423469514,1780149039000,-575.78,0.00013698,2]
[423469519,1780149039000,-575.78,0.00013698,2]
[423469522,1780149039000,-500.0,0.00013698,2]
[423469521,1780149039000,-500.0,0.00013698,2]
[423469518,1780149039000,-575.78,0.00013698,2]
[423469520,1780149039000,-500.0,0.00013698,2]
[423469523,1780149039000,-512.05018733,0.00013698,2]
[423469512,1780149039000,-575.78,0.00013698,2]
[423469559,1780149039000,-500.0,0.00013698,2]
[423469538,1780149039000,-500.0,0.00013698,2]
[423469557,1780149039000,-500.0,0.00013698,2]
[423469590,1780149039000,-500.0,0.00013698,2]
[423469589,1780149039000,-500.0,0.00013698,2]
[423469591,1780149039000,-500.0,0.00013698,2]
[423469592,1780149039000,-500.0,0.00013698,2]
[423469594,1780149039000,-500.0,0.00013698,2]
[423469596,1780149039000,-500.0,0.00013698,2]
[423469595,1780149039000,-500.0,0.00013698,2]
[423469593,1780149039000,-500.0,0.00013698,2]
[423469598,1780149039000,-509.66155533,0.00013698,2]
[423469597,1780149039000,-500.0,0.00013698,2]
[423469599,1780149039000,-500.0,0.00013698,2]
[423469600,1780149039000,-500.0,0.00013698,2]
[423469602,1780149039000,-500.0,0.00013698,2]
[423469606,1780149039000,-500.0,0.00013698,2]
[423469607,1780149039000,-500.0,0.00013698,2]
[423469601,1780149039000,-500.0,0.00013698,2]
[423469604,1780149039000,-500.0,0.00013698,2]
[423469603,1780149039000,-500.0,0.00013698,2]
[423469605,1780149039000,-500.0,0.00013698,2]
[423469609,1780149039000,-500.0,0.00013698,2]
[423469608,1780149039000,-500.0,0.00013698,2]
[423469611,1780149039000,-500.0,0.00013698,2]
[423469610,1780149039000,-500.0,0.00013698,2]
[423469612,1780149039000,-500.0,0.00013698,2]
[423469614,1780149039000,-500.0,0.00013698,2]
[423469615,1780149039000,-500.0,0.00013698,2]
[423469558,1780149039000,-500.0,0.00013698,2]
[423469587,1780149039000,-500.0,0.00013698,2]
[423469588,1780149039000,-500.0,0.00013698,2]
[423469613,1780149039000,-500.0,0.00013698,2]
[423469585,1780149039000,-500.0,0.00013698,2]
[423469586,1780149039000,-500.0,0.00013698,2]
[423469560,1780149039000,-500.0,0.00013698,2]
[423469561,1780149039000,-500.0,0.00013698,2]
[423469562,1780149039000,-500.0,0.00013698,2]
[423469564,1780149039000,-500.0,0.00013698,2]
[423469563,1780149039000,-500.0,0.00013698,2]
[423469568,1780149039000,-500.0,0.00013698,2]
[423469569,1780149039000,-500.0,0.00013698,2]
[423469565,1780149039000,-500.0,0.00013698,2]
[423469566,1780149039000,-553.36280109,0.00013698,2]
[423469571,1780149039000,-500.0,0.00013698,2]
[423469567,1780149039000,-500.0,0.00013698,2]
[423469570,1780149039000,-500.0,0.00013698,2]
[423469554,1780149039000,-500.0,0.00013698,2]
[423469573,1780149039000,-500.0,0.00013698,2]
[423469572,1780149039000,-500.0,0.00013698,2]
[423469583,1780149039000,-500.0,0.00013698,2]
[423469584,1780149039000,-500.0,0.00013698,2]
[423469582,1780149039000,-161.53446073,0.00013698,2]
[423469578,1780149039000,-500.0,0.00013698,2]
[423469579,1780149039000,-500.0,0.00013698,2]
[423469580,1780149039000,-500.0,0.00013698,2]
[423469577,1780149039000,-500.0,0.00013698,2]
[423469575,1780149039000,-500.0,0.00013698,2]
[423469576,1780149039000,-500.0,0.00013698,2]
[423469574,1780149039000,-500.0,0.00013698,2]
[423469581,1780149039000,-500.0,0.00013698,2]
[423469658,1780149040000,-500.0,0.00013698,2]
[423469663,1780149040000,-500.0,0.00013698,2]
[423469659,1780149040000,-500.0,0.00013698,2]
[423469660,1780149040000,-500.0,0.00013698,2]
[423469648,1780149040000,-3453.62,0.00013698,2]
[423469653,1780149040000,-410.30161227,0.00013698,2]
[423469651,1780149040000,-500.0,0.00013698,2]
[423469655,1780149040000,-295.37631974,0.00013698,2]
[423469657,1780149040000,-500.0,0.00013698,2]
[423469649,1780149040000,-3453.62,0.00013698,2]
[423469652,1780149040000,-500.0,0.00013698,2]
[423469661,1780149040000,-500.0,0.00013698,2]
[423469668,1780149040000,-151.0,0.00013699,2]
[423469664,1780149040000,-500.0,0.00013698,2]
[423469666,1780149040000,-200.0,0.00013699,2]
[423469673,1780149040000,-151.0,0.00013699,2]
[423469665,1780149040000,-2500.0,0.00013699,2]
[423469669,1780149040000,-151.0,0.00013699,2]
[423469670,1780149040000,-151.0,0.00013699,2]
[423469667,1780149040000,-721.0,0.00013699,2]
[423469672,1780149040000,-151.0,0.00013699,2]
[423469671,1780149040000,-151.0,0.00013699,2]
[423469674,1780149040000,-151.0,0.00013699,2]
[423469676,1780149040000,-151.0,0.00013699,2]
[423469650,1780149040000,-500.0,0.00013698,2]
[423469675,1780149040000,-151.0,0.00013699,2]
[423469662,1780149040000,-500.0,0.00013698,2]
[423469647,1780149040000,-3453.62,0.00013698,2]
[423469635,1780149040000,-500.0,0.00013698,2]
[423469640,1780149040000,-500.0,0.00013698,2]
[423469683,1780149040000,-151.0,0.00013699,2]
[423469616,1780149040000,-245.97684644,0.00013698,2]
[423469617,1780149040000,-500.0,0.00013698,2]
[423469620,1780149040000,-500.0,0.00013698,2]
[423469619,1780149040000,-500.0,0.00013698,2]
[423469618,1780149040000,-500.0,0.00013698,2]
[423469622,1780149040000,-500.0,0.00013698,2]
[423469623,1780149040000,-500.0,0.00013698,2]
[423469621,1780149040000,-500.0,0.00013698,2]
[423469624,1780149040000,-500.0,0.00013698,2]
[423469626,1780149040000,-500.0,0.00013698,2]
[423469628,1780149040000,-500.0,0.00013698,2]
[423469641,1780149040000,-500.0,0.00013698,2]
[423469625,1780149040000,-500.0,0.00013698,2]
[423469632,1780149040000,-500.0,0.00013698,2]
[423469634,1780149040000,-500.0,0.00013698,2]
[423469633,1780149040000,-500.0,0.00013698,2]
[423469636,1780149040000,-500.0,0.00013698,2]
[423469638,1780149040000,-500.0,0.00013698,2]
[423469639,1780149040000,-500.0,0.00013698,2]
[423469637,1780149040000,-500.0,0.00013698,2]
[423469643,1780149040000,-3453.62,0.00013698,2]
[423469646,1780149040000,-3453.62,0.00013698,2]
[423469644,1780149040000,-3453.62,0.00013698,2]
[423469642,1780149040000,-3453.62,0.00013698,2]
[423469645,1780149040000,-3453.62,0.00013698,2]
[423469631,1780149040000,-500.0,0.00013698,2]
[423469680,1780149040000,-151.0,0.00013699,2]
[423469718,1780149040000,-1462.0,0.00013699,2]
[423469684,1780149040000,-151.0,0.00013699,2]
[423469710,1780149040000,-1462.0,0.00013699,2]
[423469713,1780149040000,-1462.0,0.00013699,2]
[423469716,1780149040000,-1462.0,0.00013699,2]
[423469717,1780149040000,-1462.0,0.00013699,2]
[423469714,1780149040000,-1462.0,0.00013699,2]
[423469715,1780149040000,-1462.0,0.00013699,2]
[423469721,1780149040000,-1468.82970576,0.00013699,2]
[423469719,1780149040000,-1462.0,0.00013699,2]
[423469720,1780149040000,-1462.0,0.00013699,2]
[423469723,1780149040000,-640.29537102,0.00013699,2]
[423469724,1780149040000,-640.29537102,0.00013699,2]
[423469726,1780149040000,-640.29537102,0.00013699,2]
[423469712,1780149040000,-1462.0,0.00013699,2]
[423469725,1780149040000,-640.29537102,0.00013699,2]
[423469728,1780149040000,-640.29537102,0.00013699,2]
[423469729,1780149040000,-640.29537102,0.00013699,2]
[423469732,1780149040000,-640.29537102,0.00013699,2]
[423469731,1780149040000,-640.29537102,0.00013699,2]
[423469733,1780149040000,-640.29537102,0.00013699,2]
[423469730,1780149040000,-640.29537102,0.00013699,2]
[423469734,1780149040000,-640.29537102,0.00013699,2]
[423469735,1780149040000,-640.29537102,0.00013699,2]
[423469736,1780149040000,-640.29537102,0.00013699,2]
[423469738,1780149040000,-640.29537102,0.00013699,2]
[423469681,1780149040000,-510.73,0.00013699,2]
[423469737,1780149040000,-640.29537102,0.00013699,2]
[423469727,1780149040000,-640.29537102,0.00013699,2]
[423469711,1780149040000,-1462.0,0.00013699,2]
[423469722,1780149040000,-640.29537102,0.00013699,2]
[423469706,1780149040000,-1462.0,0.00013699,2]
[423469679,1780149040000,-151.0,0.00013699,2]
[423469709,1780149040000,-1462.0,0.00013699,2]
[423469677,1780149040000,-151.0,0.00013699,2]
[423469682,1780149040000,-151.0,0.00013699,2]
[423469685,1780149040000,-151.0,0.00013699,2]
[423469686,1780149040000,-151.0,0.00013699,2]
[423469688,1780149040000,-151.0,0.00013699,2]
[423469687,1780149040000,-151.0,0.00013699,2]
[423469690,1780149040000,-151.0,0.00013699,2]
[423469689,1780149040000,-151.0,0.00013699,2]
[423469694,1780149040000,-279.960539,0.00013699,2]
[423469691,1780149040000,-151.0,0.00013699,2]
[423469693,1780149040000,-151.0,0.00013699,2]
[423469692,1780149040000,-151.0,0.00013699,2]
[423469678,1780149040000,-151.0,0.00013699,2]
[423469696,1780149040000,-166.66,0.00013699,2]
[423469695,1780149040000,-6104.33,0.00013699,2]
[423469702,1780149040000,-1462.0,0.00013699,2]
[423469701,1780149040000,-1462.0,0.00013699,2]
[423469705,1780149040000,-1462.0,0.00013699,2]
[423469703,1780149040000,-1462.0,0.00013699,2]
[423469704,1780149040000,-1462.0,0.00013699,2]
[423469708,1780149040000,-1462.0,0.00013699,2]
[423469700,1780149040000,-1462.0,0.00013699,2]
[423469698,1780149040000,-1462.0,0.00013699,2]
[423469697,1780149040000,-187.71242717,0.00013699,10]
[423469699,1780149040000,-1462.0,0.00013699,2]
[423469707,1780149040000,-1462.0,0.00013699,2]
[423469788,1780149041000,-640.29537102,0.00013699,2]
[423469785,1780149041000,-640.29537102,0.00013699,2]
[423469778,1780149041000,-640.29537102,0.00013699,2]
[423469784,1780149041000,-640.29537102,0.00013699,2]
[423469786,1780149041000,-640.29537102,0.00013699,2]
[423469780,1780149041000,-640.29537102,0.00013699,2]
[423469782,1780149041000,-640.29537102,0.00013699,2]
[423469781,1780149041000,-640.29537102,0.00013699,2]
[423469789,1780149041000,-640.29537102,0.00013699,2]
[423469777,1780149041000,-640.29537102,0.00013699,2]
[423469787,1780149041000,-640.29537102,0.00013699,2]
[423469791,1780149041000,-640.29537102,0.00013699,2]
[423469796,1780149041000,-150.0,0.00013702,2]
[423469792,1780149041000,-640.29537102,0.00013699,2]
[423469794,1780149041000,-640.29537102,0.00013699,2]
[423469795,1780149041000,-4400.0,0.000137,5]
[423469798,1780149041000,-150.0,0.00013702,2]
[423469799,1780149041000,-150.0,0.00013718,2]
[423469793,1780149041000,-640.29537102,0.00013699,2]
[423469800,1780149041000,-150.0,0.0001372,2]
[423469797,1780149041000,-150.0,0.00013702,2]
[423469801,1780149041000,-2318.0,0.0001372,2]
[423469802,1780149041000,-1590.0,0.0001372,2]
[423469803,1780149041000,-1590.0,0.0001372,2]
[423469804,1780149041000,-2318.0,0.0001372,2]
[423469779,1780149041000,-640.29537102,0.00013699,2]
[423469790,1780149041000,-640.29537102,0.00013699,2]
[423469776,1780149041000,-640.29537102,0.00013699,2]
[423469740,1780149041000,-640.29537102,0.00013699,2]
[423469773,1780149041000,-640.29537102,0.00013699,2]
[423469810,1780149041000,-150.0,0.00013755,2]
[423469739,1780149041000,-640.29537102,0.00013699,2]
[423469742,1780149041000,-640.29537102,0.00013699,2]
[423469743,1780149041000,-640.29537102,0.00013699,2]
[423469741,1780149041000,-640.29537102,0.00013699,2]
[423469744,1780149041000,-640.29537102,0.00013699,2]
[423469746,1780149041000,-640.29537102,0.00013699,2]
[423469745,1780149041000,-640.29537102,0.00013699,2]
[423469747,1780149041000,-640.29537102,0.00013699,2]
[423469749,1780149041000,-640.29537102,0.00013699,2]
[423469748,1780149041000,-640.29537102,0.00013699,2]
[423469750,1780149041000,-640.29537102,0.00013699,2]
[423469754,1780149041000,-640.29537102,0.00013699,2]
[423469753,1780149041000,-640.29537102,0.00013699,2]
[423469751,1780149041000,-640.29537102,0.00013699,2]
[423469752,1780149041000,-640.29537102,0.00013699,2]
[423469755,1780149041000,-640.29537102,0.00013699,2]
[423469757,1780149041000,-640.29537102,0.00013699,2]
[423469759,1780149041000,-640.29537102,0.00013699,2]
[423469761,1780149041000,-640.29537102,0.00013699,2]
[423469763,1780149041000,-640.29537102,0.00013699,2]
[423469765,1780149041000,-640.29537102,0.00013699,2]
[423469775,1780149041000,-640.29537102,0.00013699,2]
[423469767,1780149041000,-640.29537102,0.00013699,2]
[423469774,1780149041000,-640.29537102,0.00013699,2]
[423469769,1780149041000,-640.29537102,0.00013699,2]
[423469772,1780149041000,-640.29537102,0.00013699,2]
[423469770,1780149041000,-640.29537102,0.00013699,2]
[423469808,1780149041000,-150.0,0.00013737,2]
[423469849,1780149041000,-1202.0,0.00013965,5]
[423469807,1780149041000,-420.52977603,0.00013733,2]
[423469839,1780149041000,-150.0,0.00013916,2]
[423469841,1780149041000,-150.0,0.00013916,2]
[423469842,1780149041000,-1585.14,0.00013916,2]
[423469844,1780149041000,-150.0,0.00013949,2]
[423469846,1780149041000,-150.0,0.00013956,2]
[423469843,1780149041000,-150.0,0.00013934,2]
[423469845,1780149041000,-150.0,0.00013952,2]
[423469848,1780149041000,-500.0,0.00013965,2]
[423469847,1780149041000,-150.0,0.00013961,2]
[423469850,1780149041000,-963.0,0.00013965,5]
[423469852,1780149041000,-17912.28330262,0.00013966,2]
[423469851,1780149041000,-420.52977603,0.00013966,2]
[423469838,1780149041000,-150.0,0.00013909,2]
[423469853,1780149041000,-7837.61877608,0.00013966,2]
[423469854,1780149041000,-150.0,0.00013969,2]
[423469856,1780149041000,-150.0,0.00013987,2]
[423469855,1780149041000,-166.66,0.00013973,2]
[423469857,1780149041000,-150.0,0.00013987,2]
[423469860,1780149041000,-150.0,0.00014003,2]
[423469862,1780149041000,-150.0,0.00014006,2]
[423469861,1780149041000,-150.0,0.00014005,2]
[423469859,1780149041000,-250.0,0.00014,2]
[423469863,1780149041000,-150.0,0.00014023,2]
[423469864,1780149041000,-150.0,0.00014033,2]
[423469865,1780149041000,-150.0,0.0001404,2]
[423469867,1780149041000,-2381.0,0.0001404,2]
[423469858,1780149041000,-46857.58197323,0.0001399,2]
[423469840,1780149041000,-150.0,0.00013916,2]
[423469866,1780149041000,-163.0,0.0001404,2]
[423469837,1780149041000,-8800.0,0.000139,5]
[423469835,1780149041000,-150.0,0.00013896,2]
[423469806,1780149041000,-150.0,0.00013724,2]
[423469813,1780149041000,-150.0,0.00013769,2]
[423469805,1780149041000,-150.0,0.00013722,2]
[423469811,1780149041000,-150.0,0.0001376,2]
[423469812,1780149041000,-500.0,0.00013761,2]
[423469815,1780149041000,-150.0,0.00013773,2]
[423469814,1780149041000,-150.0,0.00013773,2]
[423469816,1780149041000,-150.0,0.00013776,2]
[423469818,1780149041000,-6600.0,0.000138,5]
[423469817,1780149041000,-150.0,0.00013791,2]
[423469825,1780149041000,-150.0,0.00013834,2]
[423469824,1780149041000,-150.0,0.00013827,2]
[423469819,1780149041000,-150.0,0.00013803,2]
[423469809,1780149041000,-167.84,0.00013741,2]
[423469820,1780149041000,-150.0,0.00013809,2]
[423469822,1780149041000,-7837.61877608,0.0001381,2]
[423469836,1780149041000,-150.0,0.00013898,2]
[423469834,1780149041000,-150.0,0.00013891,2]
[423469833,1780149041000,-150.0,0.00013882,2]
[423469830,1780149041000,-150.0,0.00013862,2]
[423469831,1780149041000,-333.0,0.00013873,2]
[423469832,1780149041000,-150.0,0.0001388,2]
[423469827,1780149041000,-150.0,0.00013844,2]
[423469826,1780149041000,-166.66,0.00013836,2]
[423469828,1780149041000,-150.0,0.00013844,2]
[423469823,1780149041000,-150.0,0.00013815,2]
[423469821,1780149041000,-17912.28330262,0.0001381,2]
[423469829,1780149041000,-150.0,0.00013862,2]
[423469904,1780149042000,-333.0,0.00014147,2]
[423469907,1780149042000,-150.0,0.00014166,2]
[423469909,1780149042000,-150.0,0.00014179,2]
[423469908,1780149042000,-150.0,0.00014169,2]
[423469906,1780149042000,-2121.2871114,0.0001415,2]
[423469900,1780149042000,-1356.0,0.00014143,2]
[423469902,1780149042000,-1226.0,0.00014143,2]
[423469910,1780149042000,-150.0,0.00014183,2]
[423469901,1780149042000,-525.0,0.00014143,2]
[423469899,1780149042000,-3550.0,0.00014143,2]
[423469903,1780149042000,-150.0,0.00014143,2]
[423469905,1780149042000,-150.0,0.00014148,2]
[423469916,1780149042000,-315.0,0.000142,2]
[423469912,1780149042000,-150.0,0.00014198,2]
[423469913,1780149042000,-420.52977603,0.000142,2]
[423469915,1780149042000,-1000.0,0.000142,2]
[423469914,1780149042000,-247.08003944,0.000142,2]
[423469898,1780149042000,-500.0,0.00014132,2]
[423469918,1780149042000,-150.0,0.00014201,2]
[423469921,1780149042000,-150.0,0.00014237,2]
[423469917,1780149042000,-443.0,0.000142,2]
[423469919,1780149042000,-150.0,0.00014201,2]
[423469920,1780149042000,-150.0,0.00014219,2]
[423469922,1780149042000,-150.0,0.00014237,2]
[423469924,1780149042000,-150.0,0.00014237,2]
[423469923,1780149042000,-150.0,0.00014237,2]
[423469911,1780149042000,-150.0,0.0001419,2]
[423469891,1780149042000,-17912.28330262,0.00014122,2]
[423469890,1780149042000,-150.0,0.00014119,2]
[423469896,1780149042000,-150.0,0.0001413,2]
[423469925,1780149042000,-150.0,0.00014237,2]
[423469868,1780149042000,-150.0,0.00014041,2]
[423469870,1780149042000,-500.0,0.00014042,2]
[423469871,1780149042000,-3453.62,0.00014042,2]
[423469873,1780149042000,-33234.4339,0.00014043,2]
[423469869,1780149042000,-575.78,0.00014042,2]
[423469875,1780149042000,-150.0,0.0001405,2]
[423469872,1780149042000,-500.0,0.00014042,2]
[423469874,1780149042000,-2000.0,0.00014043,2]
[423469876,1780149042000,-150.0,0.00014059,2]
[423469877,1780149042000,-150.0,0.00014059,2]
[423469880,1780149042000,-150.0,0.00014076,2]
[423469897,1780149042000,-500.0,0.00014132,2]
[423469878,1780149042000,-150.0,0.00014064,2]
[423469885,1780149042000,-1545.0,0.00014102,2]
[423469883,1780149042000,-309.0,0.000141,2]
[423469879,1780149042000,-551.81763463,0.00014064,2]
[423469884,1780149042000,-1545.0,0.00014102,2]
[423469881,1780149042000,-150.0,0.00014094,2]
[423469887,1780149042000,-154.0,0.00014102,2]
[423469888,1780149042000,-166.66,0.0001411,2]
[423469889,1780149042000,-150.0,0.00014112,2]
[423469892,1780149042000,-7837.61877608,0.00014122,2]
[423469893,1780149042000,-150.0,0.00014122,2]
[423469894,1780149042000,-150.0,0.0001413,2]
[423469895,1780149042000,-150.0,0.0001413,2]
[423469882,1780149042000,-150.0,0.00014096,2]
[423469886,1780149042000,-1545.0,0.00014102,2]
[423469926,1780149042000,-166.66,0.00014247,2]
[423469930,1780149042000,-575.78,0.00014249,2]
[423469961,1780149042000,-494.481074,0.0001425,2]
[423469960,1780149042000,-494.481074,0.0001425,2]
[423469962,1780149042000,-193.519007,0.0001425,2]
[423469963,1780149042000,-193.519007,0.0001425,2]
[423469964,1780149042000,-193.519007,0.0001425,2]
[423469965,1780149042000,-193.519007,0.0001425,2]
[423469966,1780149042000,-151.0,0.0001425,2]
[423469968,1780149042000,-4687.320992,0.0001425,2]
[423469969,1780149042000,-4687.320992,0.0001425,2]
[423469967,1780149042000,-4687.320992,0.0001425,2]
[423469970,1780149042000,-4687.320992,0.0001425,2]
[423469971,1780149042000,-151.0,0.0001425,2]
[423469954,1780149042000,-500.0,0.00014249,2]
[423469972,1780149042000,-150.0,0.00014255,2]
[423469975,1780149042000,-150.0,0.00014276,2]
[423469974,1780149042000,-150.0,0.00014273,2]
[423469982,1780149042000,-150.0,0.00014308,2]
[423469976,1780149042000,-17912.28330262,0.00014277,2]
[423469977,1780149042000,-7837.61877608,0.00014277,2]
[423469980,1780149042000,-150.0,0.00014295,2]
[423469978,1780149042000,-150.0,0.00014284,2]
[423469979,1780149042000,-150.0,0.00014291,2]
[423469981,1780149042000,-150.0,0.00014305,2]
[423469984,1780149042000,-2000.0,0.00014327,2]
[423469983,1780149042000,-150.0,0.00014326,2]
[423469927,1780149042000,-151.0,0.00014247,2]
[423469973,1780149042000,-150.0,0.00014273,2]
[423469958,1780149042000,-494.481074,0.0001425,2]
[423469985,1780149042000,-757.53,0.00014327,2]
[423469955,1780149042000,-500.0,0.00014249,2]
[423469959,1780149042000,-494.481074,0.0001425,2]
[423469929,1780149042000,-300.0,0.00014249,2]
[423469932,1780149042000,-575.78,0.00014249,2]
[423469928,1780149042000,-151.0,0.00014247,2]
[423469934,1780149042000,-313.45446805,0.00014249,2]
[423469933,1780149042000,-386.96,0.00014249,2]
[423469935,1780149042000,-500.0,0.00014249,2]
[423469937,1780149042000,-500.0,0.00014249,2]
[423469936,1780149042000,-500.0,0.00014249,2]
[423469940,1780149042000,-500.0,0.00014249,2]
[423469938,1780149042000,-500.0,0.00014249,2]
[423469939,1780149042000,-500.0,0.00014249,2]
[423469947,1780149042000,-500.0,0.00014249,2]
[423469931,1780149042000,-575.78,0.00014249,2]
[423469946,1780149042000,-500.0,0.00014249,2]
[423469957,1780149042000,-151.0,0.0001425,2]
[423469956,1780149042000,-765118.732192,0.0001425,2]
[423469953,1780149042000,-500.0,0.00014249,2]
[423469952,1780149042000,-3453.62,0.00014249,2]
[423469941,1780149042000,-500.0,0.00014249,2]
[423469949,1780149042000,-334.19838374,0.00014249,2]
[423469951,1780149042000,-3453.62,0.00014249,2]
[423469948,1780149042000,-500.0,0.00014249,2]
[423469945,1780149042000,-500.0,0.00014249,2]
[423469944,1780149042000,-500.0,0.00014249,2]
[423469942,1780149042000,-500.0,0.00014249,2]
[423469943,1780149042000,-500.0,0.00014249,2]
[423469950,1780149042000,-3453.62,0.00014249,2]
[423470043,1780149043000,-150.0,0.00014487,2]
[423470037,1780149043000,-800.0,0.00014452,2]
[423470038,1780149043000,-3000.0,0.00014452,2]
[423470035,1780149043000,-150.0,0.00014451,2]
[423470019,1780149043000,-150.0,0.00014424,2]
[423470028,1780149043000,-150.0,0.00014434,2]
[423470024,1780149043000,-7837.61877608,0.00014433,2]
[423470020,1780149043000,-420.52977603,0.00014433,2]
[423470026,1780149043000,-150.0,0.00014433,2]
[423470022,1780149043000,-17912.28330262,0.00014433,2]
[423470031,1780149043000,-150.0,0.00014441,2]
[423470039,1780149043000,-167.84,0.00014457,2]
[423470045,1780149043000,-11000.0,0.000145,5]
[423470040,1780149043000,-150.0,0.00014468,2]
[423470042,1780149043000,-150.0,0.00014471,2]
[423470041,1780149043000,-150.0,0.00014469,2]
[423470044,1780149043000,-150.0,0.00014487,2]
[423470047,1780149043000,-150.0,0.00014513,2]
[423470046,1780149043000,-150.0,0.00014505,2]
[423470048,1780149043000,-150.0,0.00014518,2]